bitfinex/quotes_SOLUSD_20260310
["timestamp","ask_amount","ask_price","bid_price","bid_amount"]
[1773180578612,2.15818663,85.407,85.37,4.21526006]
[1773180578805,11.70850505,85.408,85.374,11.71316794]
[1773180578806,2.15818663,85.399,85.374,11.71316794]
[1773180579922,2.15818663,85.397,85.365,2.26873588]
[1773180581516,2.15818663,85.395,85.365,2.26873588]
[1773180582519,11.71015035,85.396,85.335,3.69383402]
[1773180582520,2.15818663,85.389,85.361,11.71495179]
[1773180582903,2.15818663,85.389,85.362,2.26873588]
[1773180584713,2.15818663,85.387,85.363,11.71467731]
[1773180587228,2.15818663,85.387,85.364,2.19175448]
[1773180587428,2.21453545,85.385,85.35,4.21526006]
[1773180587610,2.21453545,85.379,85.35,6.40701454]
[1773180587813,2.21453545,85.379,85.351,2.19175448]
[1773180588632,13.92715462,85.378,85.353,2.19175448]
[1773180590129,2.13259716,85.377,85.354,11.71591255]
[1773180590518,2.13259716,85.377,85.354,14.04355509]
[1773180590717,2.13259716,85.377,85.35,15.93170196]
[1773180590922,2.13259716,85.377,85.35,11.7164419]
[1773180591637,2.13259716,85.377,85.35,14.04408444]
[1773180591938,2.13259716,85.377,85.351,2.32764254]
[1773180592722,2.13259716,85.377,85.34,4.21526006]
[1773180592723,11.71289355,85.376,85.353,2.32764254]
[1773180593418,2.13259716,85.393,85.361,2.32764254]
[1773180593813,2.13259716,85.409,85.371,2.32764254]
[1773180594018,2.13259716,85.409,85.381,2.32764254]
[1773180594636,11.70868858,85.407,85.383,2.32764254]
[1773180596239,2.13259716,85.407,85.377,2.32764254]
[1773180596935,2.13259716,85.407,85.361,11.71495179]
[1773180596936,29.26943346,85.414,85.381,2.32764254]
[1773180597239,31.40203062,85.414,85.381,2.32764254]
[1773180597540,2.13259716,85.413,85.381,2.32764254]
[1773180597729,2.13259716,85.413,85.391,2.32764254]
[1773180598135,2.13259716,85.409,85.371,2.32764254]
[1773180598846,2.13259716,85.407,85.373,2.32764254]
[1773180599536,2.13259716,85.407,85.38,4.21305424]
[1773180599729,2.13259716,85.407,85.38,2.32764254]
[1773180600539,2.13259716,85.407,85.373,2.32764254]
[1773180600747,2.13259716,85.399,85.373,2.32764254]
[1773180601039,11.7098761,85.398,85.375,2.32764254]
[1773180601632,2.13259716,85.399,85.375,2.32764254]
[1773180601821,2.13259716,85.412,85.381,2.32764254]
[1773180602019,29.26815798,85.418,85.381,2.32764254]
[1773180602020,2.13259716,85.41,85.381,2.32764254]
[1773180603038,2.13259716,85.408,85.342,2.32764254]
[1773180603245,2.13259716,85.379,85.341,2.32764254]
[1773180604439,2.13259716,85.389,85.351,2.32764254]
[1773180604639,1.46371737,85.399,85.332,0.14216157]
[1773180604640,2.13259716,85.397,85.371,2.32764254]
[1773180605235,11.71015035,85.396,85.373,2.32764254]
[1773180605439,11.70966297,85.4,85.373,2.32764254]
[1773180605747,11.70966297,85.4,85.381,2.32764254]
[1773180605946,2.13259716,85.389,85.357,2.32764254]
[1773180606143,2.13259716,85.389,85.302,46.89217439]
[1773180606144,2.27475873,85.366,85.291,14.05220902]
[1773180606359,3.69383402,85.367,85.291,14.05220902]
[1773180606360,2.13259716,85.339,85.311,2.32764254]
[1773180607243,13.85070632,85.338,85.311,2.32764254]
[1773180608037,13.84963615,85.346,85.313,2.32764254]
[1773180609243,11.71640649,85.351,85.321,2.32764254]
[1773180609542,2.13259716,85.339,85.31,2.32764254]
[1773180609942,2.13259716,85.339,85.301,11.72319199]
[1773180610145,41.00363132,85.359,85.294,2.32764254]
[1773180610146,4.21305424,85.32,85.294,2.32764254]
[1773180610543,0.14216157,85.351,85.272,0.14216157]
[1773180610544,4.21305424,85.31,85.286,2.32764254]
[1773180610738,4.21305424,85.31,85.287,11.72499933]
[1773180610943,2.13259716,85.319,85.291,14.05220902]
[1773180611158,2.13259716,85.319,85.291,2.32764254]
[1773180611455,2.13259716,85.317,85.291,2.32764254]
[1773180611651,2.13259716,85.309,85.281,11.72584201]
[1773180611850,11.72085609,85.318,85.27,0.1]
[1773180611851,2.13259716,85.299,85.27,0.1]
[1773180612153,6.3456514,85.28,85.274,8.96996195]
[1773180612350,6.3456514,85.28,85.27,0.1]
[1773180612351,4.21305424,85.28,85.27,0.1]
[1773180613157,2.04590664,85.296,85.27,0.1]
[1773180613351,2.04590664,85.299,85.271,2.32764254]
[1773180613553,11.7236043,85.298,85.271,2.32764254]
[1773180614841,11.7236043,85.298,85.273,2.32764254]
[1773180615759,4.21305424,85.31,85.275,2.32764254]
[1773180615960,11.72232542,85.308,85.281,2.32764254]
[1773180616663,11.72156568,85.313,85.281,2.32764254]
[1773180618052,4.21305424,85.31,85.283,2.32764254]
[1773180618966,4.21305424,85.31,85.272,29.31762194]
[1773180619177,4.21305424,85.31,85.025,45.68708652]
[1773180619178,3.69383402,85.316,85.181,2.34741055]
[1773180619348,3.69383402,85.312,85.221,2.34741055]
[1773180619555,4.21305424,85.27,85.221,2.34741055]
[1773180619871,4.21305424,85.27,85.231,2.34741055]
[1773180620080,11.7275915,85.269,85.231,2.34741055]
[1773180620273,41.04657026,85.269,85.231,2.34741055]
[1773180620458,41.04657026,85.269,85.241,2.34741055]
[1773180620775,30.0,85.266,85.241,2.34741055]
[1773180621351,11.72688267,85.275,85.251,2.34741055]
[1773180622271,11.72325692,85.301,85.271,2.25716135]
[1773180622473,2.30779349,85.299,85.261,2.25716135]
[1773180623675,11.31800012,85.29,85.261,2.25716135]
[1773180623976,2.30779349,85.299,85.261,2.25716135]
[1773180624178,2.30779349,85.289,85.252,11.72993008]
[1773180624664,2.30779349,85.289,85.253,2.25716135]
[1773180625577,11.31800012,85.28,85.243,2.25716135]
[1773180625762,13.62579361,85.28,85.243,2.25716135]
[1773180625957,11.31800012,85.27,85.243,2.25716135]
[1773180626172,11.31800012,85.27,85.235,11.73213506]
[1773180626478,11.7275915,85.269,85.235,13.98929641]
[1773180626672,41.04657026,85.269,85.236,2.25716135]
[1773180627874,11.31800012,85.28,85.241,2.25716135]
[1773180628073,26.25524632,85.267,85.26,11.31800012]
[1773180628279,24.38455032,85.267,85.26,11.31800012]
[1773180628788,2.33722255,85.288,85.26,11.31800012]
[1773180630486,2.33722255,85.288,85.261,11.72869189]
[1773180630662,11.72374174,85.297,85.27,11.31800012]
[1773180630862,2.33722255,85.298,85.28,11.31800012]
[1773180631788,2.33722255,85.296,85.27,11.31800012]
[1773180632172,2.33722255,85.296,85.26,11.31800012]
[1773180634368,11.72401664,85.295,85.27,11.31800012]
[1773180634590,14.06123919,85.295,85.27,11.31800012]
[1773180635488,11.72401664,85.295,85.27,11.31800012]
[1773180636090,1.46486663,85.332,85.261,11.72869189]
[1773180636091,2.33722255,85.314,85.29,11.31800012]
[1773180636271,2.33722255,85.314,85.3,11.31800012]
[1773180636593,14.05863532,85.314,85.29,23.04267657]
[1773180636794,2.33722255,85.324,85.3,11.31800012]
[1773180637588,2.33722255,85.324,85.29,11.72467645]
[1773180637777,11.72031239,85.322,85.3,11.31800012]
[1773180638800,11.72031239,85.322,85.286,29.31286546]
[1773180638801,11.7189331,85.332,85.31,11.31800012]
[1773180639675,11.7189331,85.332,85.32,11.31800012]
[1773180639878,11.7189331,85.332,85.31,11.31800012]
[1773180640281,11.7189331,85.332,85.32,11.31800012]
[1773180640797,2.33722255,85.333,85.32,11.31800012]
[1773180641308,14.05327236,85.353,85.32,11.31800012]
[1773180641593,46.83493941,85.407,85.34,11.31800012]
[1773180641594,2.33722255,85.362,85.34,11.31800012]
[1773180642879,11.7136537,85.371,85.35,11.31800012]
[1773180643093,11.7136537,85.371,85.34,11.31800012]
[1773180643394,2.33722255,85.369,85.33,11.31800012]
[1773180644783,11.71399119,85.368,85.331,11.71907044]
[1773180644983,2.33722255,85.367,85.331,11.71907044]
[1773180645798,11.71426563,85.366,85.331,11.71907044]
[1773180645984,2.33722255,85.365,85.331,11.71907044]
[1773180647196,2.33722255,85.363,85.34,11.31800012]
[1773180648796,2.33722255,85.349,85.299,41.03213401]
[1773180649001,2.33722255,85.349,85.32,11.31800012]
[1773180649203,2.33722255,85.378,85.341,41.01194032]
[1773180649493,2.33722255,85.377,85.35,11.31800012]
[1773180649693,2.33722255,85.377,85.36,11.31800012]
[1773180650283,11.71266178,85.378,85.36,11.31800012]
[1773180650879,11.71184387,85.384,85.37,11.31800012]
[1773180651287,2.33722255,85.395,85.37,11.31800012]
[1773180652494,2.33722255,85.406,85.38,11.31800012]
[1773180652801,2.33722255,85.406,85.39,8.60546958]
[1773180653402,2.33722255,85.406,85.38,11.31800012]
[1773180653989,2.33722255,85.406,85.37,11.31800012]
[1773180655105,2.33722255,85.389,85.36,11.31800012]
[1773180655410,2.33722255,85.389,85.35,23.03446174]
[1773180656608,2.33722255,85.389,85.35,52.32561581]
[1773180657609,11.71124748,85.388,85.35,52.29929026]
[1773180657902,2.33722255,85.387,85.35,52.29929026]
[1773180658707,2.33722255,85.387,85.316,93.76860714]
[1773180658708,2.33722255,85.369,85.34,11.29167457]
[1773180659599,2.33722255,85.387,85.35,11.29167457]
[1773180659801,2.33722255,85.385,85.35,11.29167457]
[1773180660014,2.33722255,85.379,85.35,11.29167457]
[1773180660511,11.71015035,85.396,85.37,11.29167457]
[1773180660808,2.33722255,85.389,85.311,93.77445508]
[1773180661018,2.33722255,85.369,85.33,11.29167457]
[1773180661308,2.33722255,85.359,85.33,11.29167457]
[1773180662019,14.05258607,85.358,85.331,11.71907044]
[1773180662218,2.33722255,85.357,85.331,11.71907044]
[1773180664414,11.71563803,85.356,85.331,11.71907044]
[1773180665514,2.33722255,85.356,85.331,11.71907044]
[1773180667406,11.71577529,85.355,85.33,11.29167457]
[1773180667608,2.33722255,85.354,85.327,11.7196009]
[1773180669418,2.33722255,85.354,85.33,11.29167457]
[1773180669915,11.71604981,85.353,85.331,11.71907044]
[1773180671206,11.71604981,85.353,85.33,11.29167457]
[1773180671207,2.33722255,85.352,85.33,11.29167457]
[1773180672018,11.71632435,85.351,85.33,11.29167457]
[1773180674520,11.71632435,85.351,85.236,29.28571491]
[1773180674521,2.33722255,85.35,85.26,2.16264363]
[1773180674720,3.69383402,85.317,85.241,2.16264363]
[1773180674921,11.29167457,85.28,85.241,2.16264363]
[1773180675215,11.29167457,85.28,85.242,2.16264363]
[1773180675417,1.61409015,85.279,85.242,2.16264363]
[1773180675803,11.29167457,85.27,85.242,2.16264363]
[1773180676713,1.61218058,85.249,85.214,2.16264363]
[1773180677112,1.61218058,85.257,85.23,13.4543182]
[1773180677319,1.61218058,85.257,85.23,2.16264363]
[1773180679126,11.72937975,85.256,85.23,13.4543182]
[1773180680202,11.72937975,85.256,85.231,11.73282021]
[1773180680410,11.29167457,85.27,85.232,2.05513951]
[1773180680614,1.6089691,85.269,85.232,2.05513951]
[1773180681008,11.29167457,85.26,85.232,2.05513951]
[1773180681215,1.61313072,85.267,85.234,2.05513951]
[1773180681528,11.72772904,85.268,85.234,2.05513951]
[1773180681730,13.34085976,85.268,85.234,2.05513951]
[1773180682128,1.61724453,85.239,85.192,2.05513951]
[1773180682326,1.61724453,85.239,85.191,11.73832916]
[1773180682327,1.7594061,85.259,85.219,2.05513951]
[1773180682632,1.61724453,85.249,85.211,2.05513951]
[1773180683212,11.73048048,85.248,85.211,13.79060575]
[1773180683419,1.62131109,85.264,85.231,2.05513951]
[1773180683927,11.29167457,85.27,85.24,13.34681408]
[1773180684132,23.01922263,85.27,85.24,2.05513951]
[1773180684329,24.64455358,85.27,85.24,2.05513951]
[1773180685931,24.64455358,85.27,85.24,13.34681408]
[1773180686828,24.64455358,85.27,85.191,2.05513951]
[1773180686829,1.63323267,85.249,85.191,2.05513951]
[1773180687030,11.29167457,85.26,85.174,11.74064098]
[1773180687031,1.63323267,85.209,85.174,11.74064098]
[1773180687209,12.92879016,85.2,85.164,13.79715913]
[1773180687414,12.92879016,85.2,85.164,13.79718432]
[1773180687630,11.29167457,85.21,85.171,2.05513951]
[1773180687818,11.29167457,85.21,85.173,2.05513951]
[1773180687819,11.73584949,85.209,85.173,2.05513951]
[1773180688527,11.73584949,85.209,85.18,11.29167457]
[1773180688826,11.73584949,85.209,85.181,2.05513951]
[1773180689128,11.73584949,85.209,85.171,2.05513951]
[1773180689927,11.29167457,85.19,85.156,2.05513951]
[1773180690131,1.64474816,85.189,85.156,2.05513951]
[1773180690514,41.07643737,85.207,85.14,0.1]
[1773180690515,11.29167457,85.17,85.14,0.1]
[1773180690727,1.64849881,85.187,85.151,2.05513951]
[1773180690925,41.07643737,85.207,85.17,11.29167457]
[1773180690926,11.29167457,85.2,85.17,11.29167457]
[1773180691627,12.94388096,85.2,85.17,11.29167457]
[1773180691931,1.65220639,85.197,85.161,2.05513951]
[1773180692130,11.73736472,85.198,85.17,11.29167457]
[1773180692337,11.73672825,85.203,85.18,11.29167457]
[1773180692530,1.65587138,85.217,85.181,2.05513951]
[1773180693335,1.65587138,85.217,85.19,11.29167457]
[1773180693637,11.7351663,85.214,85.19,11.29167457]
[1773180695146,1.66661571,85.223,85.151,0.14216157]
[1773180695319,11.29167457,85.24,85.201,2.05513951]
[1773180695320,11.73199432,85.237,85.201,2.05513951]
[1773180695623,1.66661571,85.209,85.161,2.05513951]
[1773180695941,11.29167457,85.2,85.161,2.05513951]
[1773180696240,11.29167457,85.2,85.17,11.29167457]
[1773180696822,11.73722696,85.199,85.17,11.29167457]
[1773180697221,11.73722696,85.199,85.171,2.05513951]
[1773180697640,1.67357448,85.198,85.167,2.05513951]
[1773180697935,1.67357448,85.198,85.17,11.29167457]
[1773180698119,41.08029436,85.199,85.17,13.34681408]
[1773180698729,41.08029436,85.199,85.171,2.05513951]
[1773180698932,29.3430674,85.199,85.171,2.05513951]
[1773180699119,1.68037432,85.216,85.18,11.29167457]
[1773180699323,11.29167457,85.21,85.181,2.05513951]
[1773180700240,11.73258585,85.233,85.201,2.05513951]
[1773180700454,1.68371578,85.232,85.201,2.05513951]
[1773180700635,11.29167457,85.23,85.201,2.05513951]
[1773180700837,11.73309554,85.229,85.201,2.05513951]
[1773180701139,1.68701885,85.219,85.173,2.05513951]
[1773180701324,1.46637886,85.244,85.211,2.05513951]
[1773180701521,11.72965491,85.254,85.23,11.29167457]
[1773180701719,11.72965491,85.254,85.231,2.05513951]
[1773180702149,11.72814167,85.265,85.241,2.05513951]
[1773180704254,11.72649131,85.277,85.251,2.05513951]
[1773180704927,11.29167457,85.28,85.251,2.05513951]
[1773180705141,40.60695883,85.28,85.251,2.05513951]
[1773180705646,12.99153067,85.27,85.235,2.05513951]
[1773180705830,12.99153067,85.27,85.19,93.9071269]
[1773180705831,11.29167457,85.27,85.241,2.05513951]
[1773180706029,11.72511637,85.287,85.221,11.73419697]
[1773180706030,2.18809714,85.299,85.262,2.05513951]
[1773180706432,11.29167457,85.29,85.262,2.05513951]
[1773180706958,2.18809714,85.299,85.262,2.05513951]
[1773180707245,2.18809714,85.299,85.221,41.21185096]
[1773180707246,11.72250486,85.306,85.271,2.21249505]
[1773180707449,2.18999064,85.305,85.271,2.21249505]
[1773180708653,41.02876702,85.306,85.28,11.29167457]
[1773180709153,11.72250486,85.306,85.281,2.21249505]
[1773180709730,2.31875289,85.289,85.232,11.73268256]
[1773180709950,3.69383402,85.303,85.25,11.29167457]
[1773180709951,11.29167457,85.29,85.25,11.29167457]
[1773180711041,11.72484142,85.289,85.26,11.29167457]
[1773180711738,11.72484142,85.289,85.261,2.2094817]
[1773180714263,11.72484142,85.289,85.262,2.2094817]
[1773180715068,11.72484142,85.289,85.26,11.29167457]
[1773180715069,2.31875289,85.269,85.231,2.2094817]
[1773180715361,11.29167457,85.27,85.241,2.2094817]
[1773180716749,2.31875289,85.289,85.251,2.2094817]
[1773180717061,14.04373178,85.288,85.253,2.2094817]
[1773180717641,2.31875289,85.287,85.253,2.2094817]
[1773180718056,2.31875289,85.287,85.26,11.31872931]
[1773180718255,2.31875289,85.279,85.244,2.2094817]
[1773180718858,2.31875289,85.279,85.251,2.2094817]
[1773180719271,11.7263538,85.278,85.252,2.2094817]
[1773180719447,11.7263538,85.278,85.213,0.29760151]
[1773180719448,2.31875289,85.277,85.213,0.29760151]
[1773180719651,2.31875289,85.259,85.221,2.2094817]
[1773180719851,2.31875289,85.259,85.221,2.50783895]
[1773180720269,2.31875289,85.249,85.22,11.31872931]
[1773180720473,2.31875289,85.268,85.231,2.2094817]
[1773180720646,11.31872931,85.26,85.231,2.2094817]
[1773180720847,43.3609912,85.278,85.241,2.2094817]
[1773180721345,11.31872931,85.27,85.241,2.2094817]
[1773180721551,2.31875289,85.277,85.241,2.2094817]
[1773180722863,2.31875289,85.277,85.242,13.94078786]
[1773180723065,2.31875289,85.277,85.243,2.2094817]
[1773180723769,11.72511637,85.287,85.26,11.31872931]
[1773180723970,14.04386926,85.287,85.26,11.31872931]
[1773180724379,11.72511637,85.287,85.261,2.2094817]
[1773180724876,11.72414628,85.295,85.271,2.2094817]
[1773180725565,11.72414628,85.295,85.28,11.31872931]
[1773180725775,11.72250486,85.306,85.28,11.31872931]
[1773180725981,11.72250486,85.306,85.278,2.2094817]
[1773180726279,41.02876702,85.306,85.28,11.31872931]
[1773180726684,41.02876702,85.306,85.28,13.52821101]
[1773180727060,41.02876702,85.306,85.281,2.2094817]
[1773180727871,2.31875289,85.305,85.27,11.31872931]
[1773180728178,41.02876702,85.306,85.27,11.31872931]
[1773180728179,2.31875289,85.289,85.27,11.31872931]
[1773180728379,2.31875289,85.299,85.27,11.31872931]
[1773180730667,11.7236043,85.298,85.27,11.31872931]
[1773180731081,11.7236043,85.298,85.271,2.2094817]
[1773180731670,11.7236043,85.298,85.28,11.31872931]
[1773180732271,2.31875289,85.308,85.28,13.52821101]
[1773180733792,11.72236744,85.307,85.28,13.52821101]
[1773180733962,2.31875289,85.299,85.243,2.2094817]
[1773180734166,2.31875289,85.299,85.271,2.2094817]
[1773180734386,41.02828606,85.307,85.281,2.2094817]
[1773180734968,2.31875289,85.306,85.281,2.2094817]
[1773180735163,11.72236744,85.307,85.281,2.2094817]
[1773180735388,2.31875289,85.324,85.291,2.2094817]
[1773180736187,2.31875289,85.312,85.29,11.31872931]
[1773180736392,2.31875289,85.299,85.27,11.31872931]
[1773180736590,2.31875289,85.311,85.271,0.29669897]
[1773180736886,2.31875289,85.309,85.27,13.52821101]
[1773180737066,2.31875289,85.309,85.271,2.2094817]
[1773180737782,11.72168042,85.312,85.29,11.31872931]
[1773180738487,2.31875289,85.309,85.281,2.2094817]
[1773180739665,2.29623998,85.307,85.27,23.04618327]
[1773180739888,2.29623998,85.307,85.28,11.31872931]
[1773180741582,2.29623998,85.307,85.282,13.85333875]
[1773180741583,11.72250486,85.306,85.282,13.85333875]
[1773180741892,11.72250486,85.306,85.282,2.12753495]
[1773180743372,2.29623998,85.299,85.26,11.31872931]
[1773180743694,11.31872931,85.3,85.26,11.31872931]
[1773180743695,2.29623998,85.297,85.261,11.72869189]
[1773180744388,2.29623998,85.297,85.27,11.31872931]
[1773180745389,2.29623998,85.297,85.262,2.12753495]
[1773180745591,2.29623998,85.297,85.27,11.31872931]
[1773180746692,11.72387919,85.296,85.27,23.04616288]
[1773180746895,11.72387919,85.296,85.281,2.12753495]
[1773180748298,0.14216157,85.324,85.281,2.12753495]
[1773180748299,2.29623998,85.326,85.291,2.12753495]
[1773180748475,11.71961981,85.327,85.291,2.12753495]
[1773180748476,2.29623998,85.324,85.291,2.12753495]
[1773180748674,2.29623998,85.324,85.29,11.31872931]
[1773180748675,2.29623998,85.299,85.251,2.12753495]
[1773180748877,2.29623998,85.289,85.261,2.12753495]
[1773180750088,2.29623998,85.269,85.17,46.96478197]
[1773180750296,2.29623998,85.269,85.123,23.45]
[1773180750297,0.14216157,85.232,85.15,11.84389078]
[1773180750485,2.29623998,85.199,85.16,11.31872931]
[1773180750995,11.73736472,85.198,85.161,11.74246427]
[1773180751378,14.0336047,85.198,85.161,11.74246427]
[1773180751598,2.29623998,85.198,85.161,41.09862495]
[1773180751913,2.29623998,85.198,85.17,11.31872931]
[1773180752285,11.73653422,85.205,85.18,11.31872931]
[1773180752485,2.29623998,85.21,85.18,11.31872931]
[1773180752801,11.31872931,85.22,85.191,11.73832916]
[1773180753193,2.29623998,85.219,85.186,11.73899246]
[1773180754990,11.73461005,85.218,85.181,41.08884113]
[1773180755190,14.03085003,85.218,85.181,41.08884113]
[1773180755389,2.29623998,85.217,85.181,41.08884113]
[1773180756013,2.29623998,85.217,85.182,2.12753495]
[1773180756208,11.31872931,85.22,85.182,2.12753495]
[1773180756589,11.73447235,85.219,85.182,2.12753495]
[1773180756997,11.73447235,85.219,85.184,2.12753495]
[1773180757509,11.31872931,85.23,85.191,2.12753495]
[1773180758092,11.73296692,85.23,85.2,11.31872931]
[1773180758299,2.29623998,85.234,85.201,2.12753495]
[1773180758494,11.73217384,85.236,85.21,11.31872931]
[1773180759103,1.61198357,85.238,85.212,2.12753495]
[1773180759304,2.29623998,85.255,85.221,2.12753495]
[1773180759611,2.29623998,85.262,85.23,11.31872931]
[1773180761207,2.29623998,85.259,85.211,1.19404644]
[1773180761395,2.29623998,85.249,85.211,1.19404644]
[1773180761790,2.29623998,85.249,85.21,11.31872931]
[1773180762809,2.29623998,85.249,85.191,0.14216157]
[1773180762810,11.31872931,85.23,85.196,11.7375219]
[1773180763022,2.29623998,85.229,85.196,11.7375219]
[1773180763191,14.02795902,85.239,85.21,11.31872931]
[1773180763388,2.29623998,85.239,85.21,11.31872931]
[1773180763609,11.7311048,85.244,85.21,11.31872931]
[1773180763990,11.7311048,85.244,85.209,1.19464566]
[1773180764312,2.29623998,85.248,85.211,1.19494011]
[1773180764616,2.29623998,85.248,85.22,11.31872931]
[1773180765711,11.73061808,85.247,85.22,11.31872931]
[1773180766206,14.02685806,85.247,85.22,11.31872931]
[1773180766902,2.29623998,85.246,85.221,11.73419697]
[1773180768411,2.28727141,85.245,85.216,11.73485698]
[1773180769594,2.26409792,85.243,85.21,11.31872931]
[1773180769799,2.26409792,85.239,85.21,11.31872931]
[1773180771613,2.26409792,85.237,85.21,11.31872931]
[1773180771915,2.26409792,85.237,85.205,11.73638226]
[1773180773211,2.26409792,85.235,85.201,11.73695144]
[1773180775029,2.26409792,85.235,85.201,12.93133282]
[1773180775527,13.99650517,85.234,85.202,1.19433822]
[1773180776428,2.26409792,85.24,85.211,1.19429555]
[1773180776610,2.26409792,85.253,85.22,11.31872931]
[1773180777326,2.26409792,85.251,85.22,11.31872931]
[1773180777727,2.26409792,85.251,85.22,11.32761186]
[1773180778029,2.26409792,85.251,85.22,23.06186704]
[1773180779611,2.26409792,85.258,85.231,1.19417048]
[1773180779926,11.7275915,85.269,85.241,1.19417048]
[1773180780708,2.26409792,85.268,85.231,1.19412975]
[1773180780909,2.26409792,85.268,85.24,11.32761186]
[1773180781628,11.72786658,85.267,85.241,11.73144378]
[1773180782227,2.26409792,85.266,85.24,11.32761186]
[1773180782433,2.26409792,85.266,85.237,1.19408948]
[1773180782727,2.26409792,85.266,85.233,11.73252294]
[1773180782929,2.26409792,85.266,85.24,11.32761186]
[1773180783927,11.72814167,85.265,85.24,23.05909854]
[1773180784134,11.72814167,85.265,85.24,24.25306997]
[1773180784809,11.7276697,85.269,85.241,1.19397143]
[1773180785436,11.7276697,85.269,85.25,11.32761186]
[1773180786336,12.44567839,85.273,85.252,1.19389497]
[1773180786625,0.58643047,85.273,85.26,11.32761186]
[1773180786833,0.11108946,85.273,85.26,11.32761186]
[1773180787231,0.11108946,85.273,85.251,41.05523688]
[1773180788618,0.11108946,85.273,85.26,11.32761186]
[1773180789725,2.368318,85.294,85.26,11.32761186]
[1773180790041,2.368318,85.294,85.251,41.05523688]
[1773180790042,2.368318,85.294,85.27,11.32761186]
[1773180790653,2.368318,85.321,85.28,11.32761186]
[1773180790935,2.368318,85.319,85.29,11.32761186]
[1773180791114,2.368318,85.319,85.28,11.32761186]
[1773180791530,2.368318,85.309,85.271,41.04560752]
[1773180792637,2.368318,85.307,85.28,11.32761186]
[1773180792851,2.368318,85.307,85.29,11.32761186]
[1773180793216,2.368318,85.318,85.29,11.32761186]
[1773180794529,2.368318,85.318,85.261,4.96693726]
[1773180794732,2.368318,85.316,85.291,11.72456648]
[1773180796222,2.368318,85.328,85.291,11.72456648]
[1773180796718,11.32761186,85.32,85.291,11.72456648]
[1773180796920,2.368318,85.319,85.291,11.72456648]
[1773180797151,2.21059201,85.348,85.3,11.32761186]
[1773180797152,2.368318,85.339,85.3,11.32761186]
[1773180797443,2.368318,85.329,85.291,41.03598269]
[1773180797967,2.368318,85.329,85.3,11.32761186]
[1773180798161,2.368318,85.329,85.291,41.03598269]
[1773180798360,2.368318,85.329,85.3,11.32761186]
[1773180799452,41.00905713,85.347,85.28,11.32761186]
[1773180799453,2.368318,85.319,85.28,11.32761186]
[1773180801595,2.368318,85.317,85.28,4.22234514]
[1773180801872,2.368318,85.317,85.29,4.22234514]
[1773180802058,2.368318,85.309,85.28,4.22234514]
[1773180802265,2.368318,85.309,85.271,41.04560752]
[1773180802465,2.368318,85.299,85.271,11.72731643]
[1773180804964,2.368318,85.299,85.27,4.22234514]
[1773180805161,4.22234514,85.32,85.281,2.28511332]
[1773180805761,41.01915007,85.326,85.29,4.22234514]
[1773180806077,41.01915007,85.326,85.29,6.50745846]
[1773180806274,4.22234514,85.32,85.29,4.22234514]
[1773180806860,41.01915007,85.326,85.29,4.22234514]
[1773180807068,2.14230397,85.325,85.291,11.72456648]
[1773180807375,2.14230397,85.319,85.291,11.72456648]
[1773180808982,2.14230397,85.329,85.3,4.22234514]
[1773180809161,2.14230397,85.329,85.301,11.72319199]
[1773180809581,2.14230397,85.327,85.301,11.72319199]
[1773180811580,2.14230397,85.325,85.301,11.72319199]
[1773180813177,11.71907044,85.331,85.304,2.28511332]
[1773180813867,6.36464911,85.33,85.303,11.72291713]
[1773180814067,2.14230397,85.329,85.303,11.72291713]
[1773180814483,2.14230397,85.329,85.292,2.28511332]
[1773180814882,2.14230397,85.329,85.291,41.03598269]
[1773180815570,2.14230397,85.319,85.291,41.03598269]
[1773180817501,2.14230397,85.319,85.292,2.28511332]
[1773180817795,2.14230397,85.327,85.294,2.28511332]
[1773180818885,2.14230397,85.325,85.295,11.72401664]
[1773180821784,4.22234514,85.33,85.3,4.22234514]
[1773180821992,2.14230397,85.331,85.3,4.22234514]
[1773180821993,2.14230397,85.331,85.301,2.28511332]
[1773180824591,11.71920778,85.33,85.303,2.28511332]
[1773180824795,13.86151175,85.33,85.303,2.28511332]
[1773180825903,13.86151175,85.33,85.304,11.7227797]
[1773180826101,13.86151175,85.33,85.305,2.28511332]
[1773180826785,2.14230397,85.33,85.305,2.28511332]
[1773180827002,11.71934512,85.329,85.305,2.28511332]
[1773180827799,2.14230397,85.33,85.306,11.72250486]
[1773180827997,2.14230397,85.33,85.307,2.2864466]
[1773180828384,2.14230397,85.33,85.31,4.22234514]
[1773180828788,2.35175022,85.337,85.311,2.2864466]
[1773180828981,11.71673618,85.348,85.311,2.2864466]
[1773180829298,2.35175022,85.347,85.321,2.32959875]
[1773180830385,2.29363815,85.345,85.312,2.32959875]
[1773180832485,2.29363815,85.343,85.321,11.72044397]
[1773180833586,2.29363815,85.343,85.31,4.22234514]
[1773180833587,4.22234514,85.34,85.31,4.22234514]
[1773180833899,2.29363815,85.339,85.302,11.7229433]
[1773180834097,2.29363815,85.339,85.302,14.05254205]
[1773180834305,2.29363815,85.339,85.303,2.32959875]
[1773180834799,2.29363815,85.337,85.304,14.05237845]
[1773180836110,2.29363815,85.337,85.305,2.32959875]
[1773180838687,2.29363815,85.335,85.307,2.32959875]
[1773180839011,2.29363815,85.335,85.311,2.32959875]
[1773180843914,11.71615749,85.353,85.321,2.32959875]